[Event "Titled Tuesday Blitz July 27 2021"]
[White "Sapunov, Evgeny"]
[Black "Lazavik, Denis"]
[WhiteFideId "4126661"]
[BlackFideId "13515110"]
[WhiteElo "2470"]
[BlackElo "2436"]
[Result "0-1"]
[Round "07"]
[TimeControl "180+1"]
[Date "2021.07.27"]
[WhiteClock "0:00:12"]
[BlackClock "0:00:07"]

1. c4 {[%clk 0:03:00]}  c6 {[%clk 0:02:57]} 2. Nf3 {[%clk 0:03:00]}  d5 {[%clk 0:02:58]} 3. b3 {[%clk 0:03:00]}  Nf6 {[%clk 0:02:57]} 4. Bb2 {[%clk 0:03:01]}  Bf5 {[%clk 0:02:58]} 5. g3 {[%clk 0:03:01]}  e6 {[%clk 0:02:58]} 6. Bg2 {[%clk 0:03:01]}  h6 {[%clk 0:02:57]} 7. O-O {[%clk 0:03:01]}  Be7 {[%clk 0:02:58]} 8. d3 {[%clk 0:03:01]}  O-O {[%clk 0:02:58]} 9. Nbd2 {[%clk 0:03:01]}  Bh7 {[%clk 0:02:58]} 10. a3 {[%clk 0:02:59]}  a5 {[%clk 0:02:58]} 11. Bc3 {[%clk 0:02:57]}  c5 {[%clk 0:02:52]} 12. cxd5 {[%clk 0:02:55]}  Nxd5 {[%clk 0:02:41]} 13. Bb2 {[%clk 0:02:54]}  Nc6 {[%clk 0:02:42]} 14. Qc2 {[%clk 0:02:47]}  Rc8 {[%clk 0:02:40]} 15. Rac1 {[%clk 0:02:44]}  b6 {[%clk 0:02:39]} 16. Qb1 {[%clk 0:02:42]}  Bf6 {[%clk 0:02:37]} 17. Rc2 {[%clk 0:02:37]}  Bxb2 {[%clk 0:02:29]} 18. Qxb2 {[%clk 0:02:36]}  Qe7 {[%clk 0:02:15]} 19. Nc4 {[%clk 0:02:35]}  Rb8 {[%clk 0:02:13]} 20. Rfc1 {[%clk 0:02:34]}  Rfc8 {[%clk 0:02:03]} 21. Nce5 {[%clk 0:02:34]}  Nxe5 {[%clk 0:01:58]} 22. Nxe5 {[%clk 0:02:33]}  Qf6 {[%clk 0:01:55]} 23. Nc4 {[%clk 0:02:28]}  Qxb2 {[%clk 0:01:52]} 24. Rxb2 {[%clk 0:02:27]}  f6 {[%clk 0:01:42]} 25. Rbc2 {[%clk 0:02:22]}  Kf8 {[%clk 0:01:39]} 26. f4 {[%clk 0:01:56]}  g5 {[%clk 0:01:24]} 27. e4 {[%clk 0:01:51]}  Ne7 {[%clk 0:01:22]} 28. e5 {[%clk 0:01:24]}  gxf4 {[%clk 0:00:59]} 29. exf6 {[%clk 0:01:19]}  Ng8 {[%clk 0:00:54]} 30. Ne5 {[%clk 0:01:11]}  Nxf6 {[%clk 0:00:50]} 31. Rf2 {[%clk 0:01:11]}  Kg7 {[%clk 0:00:44]} 32. Rxf4 {[%clk 0:01:10]}  Rf8 {[%clk 0:00:43]} 33. d4 {[%clk 0:01:06]}  Rbc8 {[%clk 0:00:32]} 34. dxc5 {[%clk 0:01:05]}  Rxc5 {[%clk 0:00:31]} 35. Rxc5 {[%clk 0:01:04]}  bxc5 {[%clk 0:00:32]} 36. Rc4 {[%clk 0:01:03]}  Rd8 {[%clk 0:00:24]} 37. Bf3 {[%clk 0:00:58]}  Rd2 {[%clk 0:00:14]} 38. Rxc5 {[%clk 0:00:56]}  Be4 {[%clk 0:00:14]} 39. Rc7+ {[%clk 0:00:55]}  Kg8 {[%clk 0:00:14]} 40. Bxe4 {[%clk 0:00:40]}  Nxe4 {[%clk 0:00:15]} 41. Rc4 {[%clk 0:00:38]}  Nf6 {[%clk 0:00:11]} 42. Rc5 {[%clk 0:00:34]}  Rb2 {[%clk 0:00:12]} 43. Rb5 {[%clk 0:00:34]}  Ne4 {[%clk 0:00:11]} 44. Rb7 {[%clk 0:00:32]}  Nc3 {[%clk 0:00:08]} 45. h4 {[%clk 0:00:26]}  Ne2+ {[%clk 0:00:07]} 46. Kf2 {[%clk 0:00:24]}  Nd4+ {[%clk 0:00:08]} 47. Ke3 {[%clk 0:00:23]}  Nc2+ {[%clk 0:00:07]} 48. Ke4 {[%clk 0:00:20]}  a4 {[%clk 0:00:05]} 49. b4 {[%clk 0:00:19]}  Nxa3 {[%clk 0:00:06]} 50. Ng6 {[%clk 0:00:18]}  Re2+ {[%clk 0:00:04]} 51. Kd4 {[%clk 0:00:17]}  Nc2+ {[%clk 0:00:03]} 52. Kd3 {[%clk 0:00:17]}  Rg2 {[%clk 0:00:03]} 53. h5 {[%clk 0:00:16]}  a3 {[%clk 0:00:03]} 54. b5 {[%clk 0:00:14]}  a2 {[%clk 0:00:03]} 55. Ra7 {[%clk 0:00:14]}  a1=Q {[%clk 0:00:03]} 56. Rxa1 {[%clk 0:00:14]}  Nxa1 {[%clk 0:00:04]} 57. b6 {[%clk 0:00:14]}  Rb2 {[%clk 0:00:04]} 58. Ne7+ {[%clk 0:00:12]}  Kf7 {[%clk 0:00:05]} 59. Nc8 {[%clk 0:00:13]}  Ke8 {[%clk 0:00:05]} 60. Kc3 {[%clk 0:00:13]}  Rb3+ {[%clk 0:00:04]} 61. Kc4 {[%clk 0:00:14]}  Kd7 {[%clk 0:00:05]} 62. Na7 {[%clk 0:00:13]}  Rxb6 {[%clk 0:00:05]} 63. Kc5 {[%clk 0:00:14]}  Rb7 {[%clk 0:00:05]} 64. Nb5 {[%clk 0:00:14]}  Nc2 {[%clk 0:00:06]} 65. Nc3 {[%clk 0:00:13]}  Rc7+ {[%clk 0:00:06]} 66. Kb5 {[%clk 0:00:12]}  Rxc3 {[%clk 0:00:07]} 0-1


[Site "https://www.chess.com"]

[Event "Titled Tuesday Blitz July 27 2021"]
[White "Shvedova, Alexandra"]
[Black "Quintiliano Pinto, Renato R."]
[WhiteFideId "54154782"]
[BlackFideId "2117568"]
[WhiteElo "1887"]
[BlackElo "2439"]
[Result "1-0"]
[Round "07"]
[TimeControl "180+1"]
[Date "2021.07.27"]
[WhiteClock "0:00:04"]
[BlackClock "0:00:10"]

1. e4 {[%clk 0:03:00]}  c5 {[%clk 0:02:59]} 2. Ne2 {[%clk 0:03:00]}  d6 {[%clk 0:02:56]} 3. g3 {[%clk 0:03:01]}  Nf6 {[%clk 0:02:56]} 4. Bg2 {[%clk 0:03:01]}  g6 {[%clk 0:02:56]} 5. c3 {[%clk 0:03:01]}  Bg7 {[%clk 0:02:52]} 6. d4 {[%clk 0:03:01]}  O-O {[%clk 0:02:53]} 7. O-O {[%clk 0:03:01]}  Nbd7 {[%clk 0:02:49]} 8. h3 {[%clk 0:03:01]}  Rb8 {[%clk 0:02:47]} 9. Be3 {[%clk 0:02:57]}  b5 {[%clk 0:02:38]} 10. f4 {[%clk 0:02:54]}  Bb7 {[%clk 0:02:36]} 11. Nd2 {[%clk 0:02:54]}  Qc7 {[%clk 0:02:30]} 12. g4 {[%clk 0:02:41]}  Nb6 {[%clk 0:02:26]} 13. Ng3 {[%clk 0:02:36]}  Nfd7 {[%clk 0:02:08]} 14. f5 {[%clk 0:02:28]}  b4 {[%clk 0:01:54]} 15. Qe2 {[%clk 0:02:14]}  Na4 {[%clk 0:01:15]} 16. Nb1 {[%clk 0:01:34]}  bxc3 {[%clk 0:01:06]} 17. bxc3 {[%clk 0:01:33]}  Qb6 {[%clk 0:00:50]} 18. Qd2 {[%clk 0:01:25]}  Ba6 {[%clk 0:00:32]} 19. Re1 {[%clk 0:01:12]}  Nb2 {[%clk 0:00:27]} 20. Na3 {[%clk 0:00:53]}  Qa5 {[%clk 0:00:25]} 21. Nc2 {[%clk 0:00:53]}  Nc4 {[%clk 0:00:20]} 22. Qd3 {[%clk 0:00:49]}  Nxe3 {[%clk 0:00:19]} 23. Qxe3 {[%clk 0:00:50]}  Rb2 {[%clk 0:00:18]} 24. Rac1 {[%clk 0:00:36]}  Rxa2 {[%clk 0:00:17]} 25. g5 {[%clk 0:00:29]}  Rc8 {[%clk 0:00:16]} 26. h4 {[%clk 0:00:28]}  cxd4 {[%clk 0:00:16]} 27. Nxd4 {[%clk 0:00:26]}  Qb6 {[%clk 0:00:14]} 28. Rb1 {[%clk 0:00:22]}  Rb2 {[%clk 0:00:12]} 29. Rxb2 {[%clk 0:00:17]}  Qxb2 {[%clk 0:00:13]} 30. Nge2 {[%clk 0:00:17]}  Bxe2 {[%clk 0:00:12]} 31. Nxe2 {[%clk 0:00:17]}  Ne5 {[%clk 0:00:12]} 32. h5 {[%clk 0:00:09]}  Qb6 {[%clk 0:00:10]} 33. Qxb6 {[%clk 0:00:08]}  axb6 {[%clk 0:00:11]} 34. hxg6 {[%clk 0:00:08]}  hxg6 {[%clk 0:00:11]} 35. fxg6 {[%clk 0:00:08]}  fxg6 {[%clk 0:00:12]} 36. Nf4 {[%clk 0:00:08]}  Rxc3 {[%clk 0:00:12]} 37. Rb1 {[%clk 0:00:07]}  Rc6 {[%clk 0:00:10]} 38. Bf1 {[%clk 0:00:08]}  Nf3+ {[%clk 0:00:10]} 39. Kf2 {[%clk 0:00:08]}  Nd2 {[%clk 0:00:11]} 40. Rb4 {[%clk 0:00:07]}  Nxf1 {[%clk 0:00:10]} 41. Kxf1 {[%clk 0:00:07]}  Bc3 {[%clk 0:00:10]} 42. Rb3 {[%clk 0:00:07]}  Be5 {[%clk 0:00:10]} 43. Nxg6 {[%clk 0:00:07]}  Kf7 {[%clk 0:00:09]} 44. Nxe5+ {[%clk 0:00:07]}  dxe5 {[%clk 0:00:09]} 45. Rb5 {[%clk 0:00:07]}  Re6 {[%clk 0:00:08]} 46. Kf2 {[%clk 0:00:07]}  Kg6 {[%clk 0:00:09]} 47. Kf3 {[%clk 0:00:07]}  Kxg5 {[%clk 0:00:09]} 48. Kg3 {[%clk 0:00:07]}  Kf6 {[%clk 0:00:10]} 49. Kg4 {[%clk 0:00:07]}  Rc6 {[%clk 0:00:10]} 50. Kh4 {[%clk 0:00:07]}  Ke6 {[%clk 0:00:11]} 51. Kg5 {[%clk 0:00:06]}  Kd6 {[%clk 0:00:11]} 52. Kf5 {[%clk 0:00:07]}  e6+ {[%clk 0:00:11]} 53. Kf6 {[%clk 0:00:07]}  Kc7 {[%clk 0:00:10]} 54. Rxe5 {[%clk 0:00:06]}  Kb7 {[%clk 0:00:09]} 55. Rxe6 {[%clk 0:00:06]}  b5 {[%clk 0:00:09]} 56. e5 {[%clk 0:00:02]}  b4 {[%clk 0:00:09]} 57. Rxc6 {[%clk 0:00:02]}  Kxc6 {[%clk 0:00:10]} 58. e6 {[%clk 0:00:03]}  b3 {[%clk 0:00:10]} 59. e7 {[%clk 0:00:04]} 1-0


[Site "https://www.chess.com"]

[Event "Titled Tuesday Blitz July 27 2021"]
[White "Siva Mahadevan"]
[Black "Sarana, Alexey"]
[WhiteFideId "25043153"]
[BlackFideId "24133795"]
[WhiteElo "2203"]
[BlackElo "2646"]
[Result "0-1"]
[Round "07"]
[TimeControl "180+1"]
[Date "2021.07.27"]
[WhiteClock "0:00:59"]
[BlackClock "0:01:21"]

1. e4 {[%clk 0:03:00]}  c5 {[%clk 0:03:00]} 2. Nf3 {[%clk 0:03:01]}  d6 {[%clk 0:03:01]} 3. d4 {[%clk 0:03:01]}  cxd4 {[%clk 0:03:01]} 4. Nxd4 {[%clk 0:03:02]}  Nf6 {[%clk 0:03:02]} 5. Nc3 {[%clk 0:03:03]}  a6 {[%clk 0:03:02]} 6. Bg5 {[%clk 0:03:04]}  Nbd7 {[%clk 0:03:01]} 7. Qe2 {[%clk 0:03:03]}  h6 {[%clk 0:02:53]} 8. Bh4 {[%clk 0:03:02]}  b5 {[%clk 0:02:49]} 9. a4 {[%clk 0:02:56]}  b4 {[%clk 0:02:47]} 10. Nd5 {[%clk 0:02:56]}  Bb7 {[%clk 0:02:47]} 11. Qc4 {[%clk 0:02:30]}  Nxd5 {[%clk 0:02:30]} 12. exd5 {[%clk 0:02:29]}  Qa5 {[%clk 0:01:57]} 13. Nc6 {[%clk 0:02:23]}  Qc5 {[%clk 0:01:54]} 14. Qxb4 {[%clk 0:02:06]}  Qxb4+ {[%clk 0:01:53]} 15. Nxb4 {[%clk 0:02:06]}  g5 {[%clk 0:01:54]} 16. Bg3 {[%clk 0:02:06]}  Bg7 {[%clk 0:01:55]} 17. c3 {[%clk 0:01:52]}  Nb6 {[%clk 0:01:48]} 18. O-O-O {[%clk 0:01:49]}  Nxa4 {[%clk 0:01:47]} 19. Re1 {[%clk 0:01:49]}  Kd7 {[%clk 0:01:42]} 20. Bd3 {[%clk 0:01:49]}  Nc5 {[%clk 0:01:41]} 21. Bf5+ {[%clk 0:01:48]}  e6 {[%clk 0:01:41]} 22. Bc2 {[%clk 0:01:22]}  a5 {[%clk 0:01:39]} 23. Nc6 {[%clk 0:01:19]}  Bxc6 {[%clk 0:01:37]} 24. dxc6+ {[%clk 0:01:20]}  Kxc6 {[%clk 0:01:38]} 25. h4 {[%clk 0:01:19]}  d5 {[%clk 0:01:29]} 26. f4 {[%clk 0:01:13]}  gxf4 {[%clk 0:01:25]} 27. Bxf4 {[%clk 0:01:14]}  a4 {[%clk 0:01:26]} 28. Kb1 {[%clk 0:01:09]}  a3 {[%clk 0:01:25]} 29. b4 {[%clk 0:01:05]}  Bxc3 {[%clk 0:01:21]} 30. bxc5 {[%clk 0:00:59]}  a2+ {[%clk 0:01:21]} 0-1


[Site "https://www.chess.com"]

[Event "Titled Tuesday Blitz July 27 2021"]
[White "Stoyanov, Tsvetan"]
[Black "Nesterov, Arseniy"]
[WhiteFideId "2917173"]
[BlackFideId "24198455"]
[WhiteElo "2198"]
[BlackElo "2477"]
[Result "1/2-1/2"]
[Round "07"]
[TimeControl "180+1"]
[Date "2021.07.27"]
[WhiteClock "0:00:03"]
[BlackClock "0:00:03"]

1. e4 {[%clk 0:03:00]}  e5 {[%clk 0:03:00]} 2. Nf3 {[%clk 0:03:01]}  Nc6 {[%clk 0:03:00]} 3. d4 {[%clk 0:03:01]}  exd4 {[%clk 0:03:00]} 4. Nxd4 {[%clk 0:03:02]}  Bc5 {[%clk 0:03:00]} 5. Nxc6 {[%clk 0:03:02]}  Qf6 {[%clk 0:02:59]} 6. Qf3 {[%clk 0:03:02]}  bxc6 {[%clk 0:02:56]} 7. Nd2 {[%clk 0:02:59]}  d6 {[%clk 0:02:55]} 8. Nb3 {[%clk 0:02:58]}  Bb6 {[%clk 0:02:53]} 9. a4 {[%clk 0:02:56]}  a5 {[%clk 0:02:49]} 10. Bd2 {[%clk 0:02:56]}  Be6 {[%clk 0:02:43]} 11. Bc3 {[%clk 0:02:52]}  Qh6 {[%clk 0:02:17]} 12. Nd4 {[%clk 0:02:49]}  Ne7 {[%clk 0:01:56]} 13. Qg3 {[%clk 0:02:30]}  O-O {[%clk 0:01:41]} 14. Bd3 {[%clk 0:02:07]}  Bxd4 {[%clk 0:01:01]} 15. Bxd4 {[%clk 0:02:08]}  f5 {[%clk 0:00:58]} 16. exf5 {[%clk 0:01:51]}  Nxf5 {[%clk 0:00:42]} 17. Bxf5 {[%clk 0:01:50]}  Rxf5 {[%clk 0:00:43]} 18. O-O {[%clk 0:01:43]}  Bd5 {[%clk 0:00:33]} 19. f3 {[%clk 0:01:22]}  Raf8 {[%clk 0:00:29]} 20. Rae1 {[%clk 0:01:20]}  Rg5 {[%clk 0:00:28]} 21. Be3 {[%clk 0:01:13]}  Rxg3 {[%clk 0:00:25]} 22. Bxh6 {[%clk 0:01:13]}  Rg6 {[%clk 0:00:24]} 23. Bd2 {[%clk 0:01:13]}  Rxf3 {[%clk 0:00:19]} 24. Rxf3 {[%clk 0:01:08]}  Bxf3 {[%clk 0:00:20]} 25. g3 {[%clk 0:01:09]}  Kf7 {[%clk 0:00:06]} 26. Bxa5 {[%clk 0:01:05]}  d5 {[%clk 0:00:04]} 27. Bxc7 {[%clk 0:00:59]}  Be4 {[%clk 0:00:04]} 28. a5 {[%clk 0:00:57]}  c5 {[%clk 0:00:04]} 29. c4 {[%clk 0:00:55]}  Rc6 {[%clk 0:00:04]} 30. cxd5 {[%clk 0:00:51]}  Bxd5 {[%clk 0:00:04]} 31. Be5 {[%clk 0:00:51]}  Re6 {[%clk 0:00:03]} 32. Rf1+ {[%clk 0:00:51]}  Kg6 {[%clk 0:00:03]} 33. Bc3 {[%clk 0:00:48]}  Re2 {[%clk 0:00:03]} 34. Rf2 {[%clk 0:00:49]}  Rxf2 {[%clk 0:00:04]} 35. Kxf2 {[%clk 0:00:49]}  Kf7 {[%clk 0:00:04]} 36. Ke3 {[%clk 0:00:48]}  g6 {[%clk 0:00:05]} 37. Kf4 {[%clk 0:00:47]}  Ke6 {[%clk 0:00:05]} 38. Kg5 {[%clk 0:00:47]}  Kf7 {[%clk 0:00:06]} 39. a6 {[%clk 0:00:36]}  Bc6 {[%clk 0:00:06]} 40. Kh6 {[%clk 0:00:32]}  Kg8 {[%clk 0:00:05]} 41. b3 {[%clk 0:00:30]}  Bd5 {[%clk 0:00:05]} 42. a7 {[%clk 0:00:30]}  Bc6 {[%clk 0:00:04]} 43. Be5 {[%clk 0:00:28]}  Bd5 {[%clk 0:00:04]} 44. Bd6 {[%clk 0:00:29]}  Bc6 {[%clk 0:00:05]} 45. Bxc5 {[%clk 0:00:29]}  Bd5 {[%clk 0:00:05]} 46. b4 {[%clk 0:00:29]}  Bc6 {[%clk 0:00:05]} 47. Kg5 {[%clk 0:00:22]}  Kf7 {[%clk 0:00:05]} 48. Bd4 {[%clk 0:00:20]}  h5 {[%clk 0:00:05]} 49. Be5 {[%clk 0:00:18]}  Bd5 {[%clk 0:00:05]} 50. Bc7 {[%clk 0:00:17]}  Bc6 {[%clk 0:00:05]} 51. Kf4 {[%clk 0:00:16]}  Ke6 {[%clk 0:00:05]} 52. Ke3 {[%clk 0:00:17]}  Kd5 {[%clk 0:00:04]} 53. Kf4 {[%clk 0:00:15]}  Ke6 {[%clk 0:00:04]} 54. b5 {[%clk 0:00:15]}  Bb7 {[%clk 0:00:04]} 55. Kg5 {[%clk 0:00:14]}  Kf7 {[%clk 0:00:04]} 56. Bf4 {[%clk 0:00:13]}  Ba8 {[%clk 0:00:04]} 57. Bd2 {[%clk 0:00:11]}  Bb7 {[%clk 0:00:04]} 58. Bc3 {[%clk 0:00:12]}  Ba8 {[%clk 0:00:05]} 59. Ba1 {[%clk 0:00:13]}  Bb7 {[%clk 0:00:05]} 60. Bd4 {[%clk 0:00:14]}  Ba8 {[%clk 0:00:05]} 61. Bc5 {[%clk 0:00:14]}  Bb7 {[%clk 0:00:05]} 62. Kf4 {[%clk 0:00:10]}  Ke6 {[%clk 0:00:05]} 63. Ke3 {[%clk 0:00:11]}  Kd5 {[%clk 0:00:05]} 64. Ba3 {[%clk 0:00:08]}  Ba8 {[%clk 0:00:04]} 65. Kd3 {[%clk 0:00:07]}  Bb7 {[%clk 0:00:04]} 66. Kc3 {[%clk 0:00:08]}  Ba8 {[%clk 0:00:04]} 67. Kb4 {[%clk 0:00:08]}  Ke6 {[%clk 0:00:04]} 68. Ka5 {[%clk 0:00:09]}  Kd7 {[%clk 0:00:04]} 69. Kb6 {[%clk 0:00:08]}  Bg2 {[%clk 0:00:04]} 70. Kc5 {[%clk 0:00:04]}  Kc8 {[%clk 0:00:04]} 71. Bb2 {[%clk 0:00:04]}  Kb7 {[%clk 0:00:04]} 72. Kd6 {[%clk 0:00:04]}  Kxa7 {[%clk 0:00:03]} 73. Ke6 {[%clk 0:00:03]} 1/2-1/2


[Site "https://www.chess.com"]

[Event "Titled Tuesday Blitz July 27 2021"]
[White "Stribuk, Artiom"]
[Black "Najdin, Danil"]
[WhiteFideId "13515659"]
[BlackFideId "4172426"]
[WhiteElo "2224"]
[BlackElo "2193"]
[Result "0-1"]
[Round "07"]
[TimeControl "180+1"]
[Date "2021.07.27"]
[WhiteClock "0:00:02"]
[BlackClock "0:00:05"]

1. d4 {[%clk 0:03:00]}  Nf6 {[%clk 0:02:59]} 2. c4 {[%clk 0:02:52]}  g6 {[%clk 0:02:59]} 3. Nf3 {[%clk 0:02:53]}  Bg7 {[%clk 0:02:59]} 4. g3 {[%clk 0:02:54]}  O-O {[%clk 0:02:59]} 5. Bg2 {[%clk 0:02:54]}  d6 {[%clk 0:03:00]} 6. O-O {[%clk 0:02:55]}  Nc6 {[%clk 0:03:00]} 7. Nc3 {[%clk 0:02:56]}  a6 {[%clk 0:03:00]} 8. Qd3 {[%clk 0:02:56]}  e5 {[%clk 0:02:53]} 9. dxe5 {[%clk 0:02:55]}  dxe5 {[%clk 0:02:51]} 10. Qxd8 {[%clk 0:02:56]}  Rxd8 {[%clk 0:02:51]} 11. Bg5 {[%clk 0:02:57]}  Be6 {[%clk 0:02:29]} 12. Nd2 {[%clk 0:02:56]}  h6 {[%clk 0:02:29]} 13. Bxf6 {[%clk 0:02:56]}  Bxf6 {[%clk 0:02:30]} 14. Nd5 {[%clk 0:02:57]}  Bxd5 {[%clk 0:02:20]} 15. cxd5 {[%clk 0:02:58]}  Nb4 {[%clk 0:02:05]} 16. Ne4 {[%clk 0:02:56]}  Be7 {[%clk 0:02:04]} 17. Nc3 {[%clk 0:02:56]}  c6 {[%clk 0:01:46]} 18. dxc6 {[%clk 0:02:53]}  Nxc6 {[%clk 0:01:47]} 19. Nd5 {[%clk 0:02:51]}  f5 {[%clk 0:01:25]} 20. Rac1 {[%clk 0:02:46]}  e4 {[%clk 0:01:08]} 21. Rxc6 {[%clk 0:02:23]}  bxc6 {[%clk 0:01:09]} 22. Nxe7+ {[%clk 0:02:23]}  Kf7 {[%clk 0:01:10]} 23. Nxc6 {[%clk 0:02:23]}  Rd2 {[%clk 0:01:11]} 24. e3 {[%clk 0:02:08]}  Rc8 {[%clk 0:01:06]} 25. Nd4 {[%clk 0:02:03]}  Rxb2 {[%clk 0:01:05]} 26. f3 {[%clk 0:02:02]}  exf3 {[%clk 0:01:03]} 27. Bxf3 {[%clk 0:02:02]}  Kg7 {[%clk 0:00:52]} 28. g4 {[%clk 0:01:39]}  Rc3 {[%clk 0:00:34]} 29. Rf2 {[%clk 0:01:08]}  Rxf2 {[%clk 0:00:26]} 30. Kxf2 {[%clk 0:01:09]}  fxg4 {[%clk 0:00:25]} 31. Bxg4 {[%clk 0:01:07]}  Ra3 {[%clk 0:00:21]} 32. Be6 {[%clk 0:01:07]}  Kf6 {[%clk 0:00:21]} 33. Bc4 {[%clk 0:01:06]}  Ke5 {[%clk 0:00:20]} 34. Kf3 {[%clk 0:01:02]}  g5 {[%clk 0:00:20]} 35. h3 {[%clk 0:01:02]}  h5 {[%clk 0:00:20]} 36. Bb3 {[%clk 0:00:51]}  Kf6 {[%clk 0:00:12]} 37. Nc6 {[%clk 0:00:42]}  a5 {[%clk 0:00:08]} 38. Nd4 {[%clk 0:00:18]}  a4 {[%clk 0:00:08]} 39. Bc4 {[%clk 0:00:07]}  Rc3 {[%clk 0:00:07]} 40. Bd5 {[%clk 0:00:06]}  Ke5 {[%clk 0:00:01]} 41. Bf7 {[%clk 0:00:06]}  Rc1 {[%clk 0:00:01]} 42. Bxh5 {[%clk 0:00:04]}  a3 {[%clk 0:00:01]} 43. Kg3 {[%clk 0:00:02]}  Ra1 {[%clk 0:00:01]} 44. Bf7 {[%clk 0:00:03]}  Ke4 {[%clk 0:00:01]} 45. Nf3 {[%clk 0:00:03]}  Kxe3 {[%clk 0:00:02]} 46. Nxg5 {[%clk 0:00:04]}  Rg1+ {[%clk 0:00:02]} 47. Kh4 {[%clk 0:00:04]}  Kf4 {[%clk 0:00:02]} 48. Bb3 {[%clk 0:00:05]}  Rxg5 {[%clk 0:00:02]} 49. Bc4 {[%clk 0:00:02]}  Rg7 {[%clk 0:00:02]} 50. Kh5 {[%clk 0:00:02]}  Rh7+ {[%clk 0:00:02]} 51. Kg6 {[%clk 0:00:03]}  Rxh3 {[%clk 0:00:03]} 52. Kf6 {[%clk 0:00:04]}  Ke4 {[%clk 0:00:04]} 53. Be6 {[%clk 0:00:03]}  Rh2 {[%clk 0:00:04]} 54. Ke7 {[%clk 0:00:03]}  Kd4 {[%clk 0:00:04]} 55. Kd6 {[%clk 0:00:03]}  Kc3 {[%clk 0:00:05]} 56. Kc5 {[%clk 0:00:04]}  Kb2 {[%clk 0:00:05]} 57. Kb4 {[%clk 0:00:04]}  Rh1 {[%clk 0:00:05]} 58. Bd5 {[%clk 0:00:03]}  Ra1 {[%clk 0:00:06]} 59. Bb3 {[%clk 0:00:02]}  Rxa2 {[%clk 0:00:05]} 0-1


[Site "https://www.chess.com"]

[Event "Titled Tuesday Blitz July 27 2021"]
[White "Tomiello, Lucas Costamilan"]
[Black "Rodchenkov, Vitaly"]
[WhiteFideId "22701940"]
[BlackFideId "4152964"]
[WhiteElo "1945"]
[BlackElo "2337"]
[Result "1-0"]
[Round "07"]
[TimeControl "180+1"]
[Date "2021.07.27"]
[WhiteClock "0:00:03"]
[BlackClock "0:00:57"]

1. e4 {[%clk 0:03:00]}  c5 {[%clk 0:02:59]} 2. Nf3 {[%clk 0:03:01]}  d6 {[%clk 0:02:59]} 3. d4 {[%clk 0:03:02]}  cxd4 {[%clk 0:02:59]} 4. Nxd4 {[%clk 0:03:03]}  Nf6 {[%clk 0:02:59]} 5. Nc3 {[%clk 0:03:03]}  a6 {[%clk 0:02:59]} 6. h3 {[%clk 0:03:00]}  e6 {[%clk 0:02:55]} 7. g4 {[%clk 0:03:00]}  d5 {[%clk 0:02:54]} 8. exd5 {[%clk 0:03:00]}  Nxd5 {[%clk 0:02:54]} 9. Nde2 {[%clk 0:02:59]}  Bb4 {[%clk 0:02:52]} 10. Bg2 {[%clk 0:02:59]}  O-O {[%clk 0:02:45]} 11. Bd2 {[%clk 0:02:52]}  Bxc3 {[%clk 0:02:39]} 12. Nxc3 {[%clk 0:02:52]}  Nc6 {[%clk 0:02:37]} 13. Nxd5 {[%clk 0:02:51]}  exd5 {[%clk 0:02:37]} 14. O-O {[%clk 0:02:50]}  Be6 {[%clk 0:02:37]} 15. c3 {[%clk 0:02:42]}  d4 {[%clk 0:02:37]} 16. cxd4 {[%clk 0:02:39]}  Nxd4 {[%clk 0:02:35]} 17. Be3 {[%clk 0:02:36]}  Nc6 {[%clk 0:02:34]} 18. a3 {[%clk 0:02:25]}  Qf6 {[%clk 0:02:32]} 19. Qe2 {[%clk 0:01:52]}  Rfe8 {[%clk 0:02:29]} 20. Rac1 {[%clk 0:01:48]}  Nd4 {[%clk 0:02:26]} 21. Bxd4 {[%clk 0:01:34]}  Qxd4 {[%clk 0:02:16]} 22. Rfd1 {[%clk 0:01:06]}  Qb6 {[%clk 0:02:11]} 23. Re1 {[%clk 0:00:52]}  h6 {[%clk 0:02:06]} 24. b4 {[%clk 0:00:47]}  a5 {[%clk 0:02:05]} 25. Rb1 {[%clk 0:00:43]}  axb4 {[%clk 0:02:02]} 26. Rxb4 {[%clk 0:00:43]}  Qc5 {[%clk 0:02:02]} 27. Rxb7 {[%clk 0:00:43]}  Rxa3 {[%clk 0:01:59]} 28. Qb2 {[%clk 0:00:41]}  Rc3 {[%clk 0:01:57]} 29. Rb5 {[%clk 0:00:38]}  Qc8 {[%clk 0:01:54]} 30. Rbe5 {[%clk 0:00:35]}  Rd8 {[%clk 0:01:53]} 31. R5e2 {[%clk 0:00:33]}  Qc5 {[%clk 0:01:50]} 32. Rd2 {[%clk 0:00:30]}  Rc8 {[%clk 0:01:45]} 33. Rde2 {[%clk 0:00:24]}  Qd4 {[%clk 0:01:38]} 34. Qd2 {[%clk 0:00:23]}  Qf6 {[%clk 0:01:35]} 35. Qd6 {[%clk 0:00:18]}  h5 {[%clk 0:01:29]} 36. gxh5 {[%clk 0:00:12]}  Qh4 {[%clk 0:01:29]} 37. Rxe6 {[%clk 0:00:12]}  fxe6 {[%clk 0:01:27]} 38. Qxe6+ {[%clk 0:00:13]}  Kh8 {[%clk 0:01:27]} 39. Qg4 {[%clk 0:00:12]}  Qf6 {[%clk 0:01:24]} 40. Be4 {[%clk 0:00:10]}  Rf8 {[%clk 0:01:22]} 41. f3 {[%clk 0:00:10]}  Qb6+ {[%clk 0:01:20]} 42. Kh1 {[%clk 0:00:09]}  Qf2 {[%clk 0:01:18]} 43. Rg1 {[%clk 0:00:08]}  Qd4 {[%clk 0:01:14]} 44. Qg6 {[%clk 0:00:07]}  Kg8 {[%clk 0:01:09]} 45. Bd5+ {[%clk 0:00:05]}  Kh8 {[%clk 0:01:07]} 46. Be4 {[%clk 0:00:06]}  Kg8 {[%clk 0:01:06]} 47. h6 {[%clk 0:00:06]}  Rc7 {[%clk 0:01:03]} 48. hxg7 {[%clk 0:00:03]}  Rxg7 {[%clk 0:01:01]} 49. Bd5+ {[%clk 0:00:03]}  Kh8 {[%clk 0:00:57]} 50. Qh6+ {[%clk 0:00:03]}  Rh7 {[%clk 0:00:57]} 51. Qxf8# {[%clk 0:00:03]} 1-0


[Site "https://www.chess.com"]